bitfinex/quotes_ETHUSD_20250107
["timestamp","ask_amount","ask_price","bid_price","bid_amount"]
[1736244644078,0.0075,3657.2,3656.9,3.49249]
[1736244644357,0.0075,3657.4,3657.0,0.78534123]
[1736244644519,0.0075,3657.4,3657.2,0.758]
[1736244644843,0.0225,3657.4,3657.3,35.0]
[1736244650160,2.62600017,3657.7,3657.3,35.0]
[1736244650960,0.015,3657.6,3657.3,35.0]
[1736244654029,0.0075,3657.5,3657.3,35.0]
[1736244654731,2.64850017,3657.4,3657.3,35.0]
[1736244654932,3.26305419,3657.4,3657.3,35.0]
[1736244655180,5.99723419,3657.4,3657.3,35.0]
[1736244656887,6.54746549,3657.4,3657.3,35.0]
[1736244658196,0.015,3657.3,3656.6,0.8205]
[1736244658560,0.015,3657.3,3657.2,35.0]
[1736244659364,0.68383415,3657.3,3657.2,35.0]
[1736244660282,3.41808415,3657.3,3657.2,35.0]
[1736244660687,0.68383415,3657.3,3657.2,35.0]
[1736244660884,0.015,3657.3,3657.2,35.0]
[1736244662490,0.015,3657.3,3657.2,35.8304]
[1736244662887,0.0225,3657.3,3657.2,35.0]
[1736244667521,1.20781564,3657.3,3657.2,35.0]
[1736244668219,1.20781564,3657.3,3656.9,0.8304]
[1736244668390,1.19281564,3657.0,3656.9,0.8304]
[1736244668592,1.19281564,3657.0,3656.9,35.8304]
[1736244672192,1.20031564,3657.0,3656.9,35.8304]
[1736244675526,1.20781564,3657.0,3656.9,35.0]
[1736244675734,2.73463,3656.8,3656.0,0.8185]
[1736244675889,0.015,3656.0,3655.8,1.14634426]
[1736244676090,1.20031564,3655.9,3655.8,1.14634426]
[1736244676337,1.20031564,3655.9,3655.8,36.14634426]
[1736244676693,3.93561564,3655.9,3655.8,36.14634426]
[1736244677430,1.20031564,3655.9,3655.8,35.0]
[1736244679227,1.20781564,3655.9,3655.8,35.0]
[1736244679526,0.0225,3655.9,3655.8,35.0]
[1736244684740,4.05511079,3655.9,3655.8,35.0]
[1736244686414,3.5165,3655.9,3655.8,35.0]
[1736244691412,6.5165,3655.9,3655.8,35.0]
[1736244691813,0.818,3655.7,3654.6,0.7611]
[1736244692044,2.73671,3654.1,3653.8,0.1234154]
[1736244692225,2.75172,3654.0,3653.8,0.1234154]
[1736244692421,2.7518,3653.9,3653.8,0.1234154]
[1736244692627,5.38024789,3653.9,3653.8,0.1234154]
[1736244693041,2.7518,3653.9,3653.8,0.1234154]
[1736244693571,0.015,3653.9,3653.8,0.1234154]
[1736244694262,5.38024789,3653.9,3653.8,0.1234154]
[1736244694427,2.7518,3653.9,3653.8,0.1234154]
[1736244695259,2.7518,3653.9,3653.8,35.1234154]
[1736244695458,2.7593,3653.9,3653.8,35.1234154]
[1736244696962,5.38774789,3653.9,3653.8,35.1234154]
[1736244702542,2.65094789,3653.9,3653.8,35.1234154]
[1736244702942,5.38774789,3653.9,3653.8,35.1234154]
[1736244708790,0.0075,3653.9,3653.8,35.9338154]
[1736244712389,0.0225,3653.9,3653.8,35.9338154]
[1736244713478,0.7511,3655.0,3653.8,35.9338154]
[1736244713684,3.37954789,3655.0,3654.0,0.7757]
[1736244713991,0.015,3654.9,3654.1,0.02736355]
[1736244714173,0.0075,3654.8,3654.2,35.0]
[1736244714557,0.0075,3654.6,3654.2,35.0]
[1736244715392,0.0075,3654.6,3654.3,0.7617]
[1736244715583,0.0075,3654.6,3654.4,0.02736231]
[1736244715984,0.0075,3654.6,3654.5,35.0]
[1736244721002,2.64344789,3654.6,3654.5,35.0]
[1736244721203,0.015,3654.6,3654.5,35.0]
[1736244722500,0.0225,3654.6,3654.5,35.0]
[1736244723994,0.015,3654.6,3654.5,35.0]
[1736244728283,0.015,3654.6,3654.5,35.8292]
[1736244731009,0.015,3654.6,3654.5,38.56555]
[1736244731195,0.0075,3654.6,3654.5,38.56555]
[1736244731398,100.0,3655.0,3654.7,2.73613]
[1736244731597,150.0,3655.0,3654.8,0.8295]
[1736244731797,150.0,3655.0,3654.8,1.241063]
[1736244731998,150.0075,3655.0,3654.9,35.0]
[1736244732300,150.015,3655.0,3654.9,35.0]
[1736244741556,150.015,3655.0,3654.9,37.73605]
[1736244741700,150.015,3655.0,3654.9,35.0]
[1736244741900,150.0,3655.0,3654.9,37.73605]
[1736244742101,150.0,3655.0,3654.9,39.07755]
[1736244756161,150.0,3655.0,3654.9,40.02318607]
[1736244759065,150.0,3655.0,3654.9,41.44234466]
[1736244760164,150.0,3655.0,3654.9,41.64334466]
[1736244764574,140.16827558,3655.0,3654.9,44.89334466]
[1736244764872,135.31356842,3655.0,3654.9,44.89334466]
[1736244765702,133.94557842,3655.0,3654.9,44.89334466]
[1736244765837,131.20959842,3655.0,3654.9,44.89334466]
[1736244766152,129.84160842,3655.0,3654.9,44.89334466]
[1736244766339,129.84160842,3655.0,3654.9,49.64045813]
[1736244766837,129.84160842,3655.0,3654.9,49.39045813]
[1736244768039,129.84160842,3655.0,3654.9,48.82573713]
[1736244769260,129.84160842,3655.0,3654.9,48.96268307]
[1736244769788,129.84160842,3655.0,3654.9,46.67355841]
[1736244770098,125.36282378,3655.0,3654.9,46.92355841]
[1736244770458,122.62684378,3655.0,3654.9,46.92355841]
[1736244771393,122.62684378,3655.0,3654.9,49.77740407]
[1736244773088,122.62684378,3655.0,3654.9,48.01825441]
[1736244773497,122.62684378,3655.0,3654.9,47.81725441]
[1736244773668,122.62684378,3655.0,3654.9,50.3957023]
[1736244774002,122.62684378,3655.0,3654.9,50.25875636]
[1736244774199,122.62684378,3655.0,3654.9,49.16406036]
[1736244774984,122.62684378,3655.0,3654.9,52.01790602]
[1736244776617,122.62684378,3655.0,3654.9,49.16406036]
[1736244777115,122.62684378,3655.0,3654.9,46.53561247]
[1736244777294,122.62684378,3655.0,3654.9,49.16406036]
[1736244779565,122.62684378,3655.0,3654.9,39.25806247]
[1736244779670,123.42164378,3655.0,3654.9,41.54896708]
[1736244781280,123.42164378,3655.0,3654.9,35.94563607]
[1736244783720,122.62684378,3655.0,3654.9,35.94563607]
[1736244784960,122.62684378,3655.0,3654.9,37.36735266]
[1736244787209,123.42404378,3655.0,3654.9,37.36735266]
[1736244789554,123.42404378,3655.0,3654.9,35.0]
[1736244789904,123.43904378,3655.0,3654.9,35.0]
[1736244793960,123.44654378,3655.0,3654.9,35.0]
[1736244794525,122.62684378,3655.0,3654.9,35.0]
[1736244794724,122.62684378,3655.0,3654.9,41.14679789]
[1736244795768,122.62684378,3655.0,3654.9,44.14679789]
[1736244797063,122.62684378,3655.0,3654.9,46.51517756]
[1736244798261,122.62684378,3655.0,3654.9,47.06517756]
[1736244798630,122.62684378,3655.0,3654.9,48.95988656]
[1736244798835,122.62684378,3655.0,3654.9,50.67856954]
[1736244800149,122.62684378,3655.0,3654.9,51.82351733]
[1736244801863,122.62684378,3655.0,3654.9,51.25096427]
[1736244803276,119.89086378,3655.0,3654.9,49.20988656]
[1736244803573,117.15488378,3655.0,3654.9,49.20988656]
[1736244804451,115.78689378,3655.0,3654.9,49.20988656]
[1736244804657,114.41890378,3655.0,3654.9,49.20988656]
[1736244804869,111.68292378,3655.0,3654.9,51.57748615]
[1736244807146,107.95284625,3655.0,3654.9,51.57748615]
[1736244809619,107.95284625,3655.0,3654.9,51.32748615]
[1736244810205,107.95284625,3655.0,3654.9,50.77748615]
[1736244810480,107.95284625,3655.0,3654.9,50.97748615]
[1736244810652,107.95284625,3655.0,3654.9,48.60988656]
[1736244812382,107.95284625,3655.0,3654.9,52.02205909]
[1736244816158,107.95284625,3655.0,3654.9,51.52631865]
[1736244818293,107.95284625,3655.0,3654.9,51.77631865]
[1736244819003,107.95284625,3655.0,3654.9,49.40988656]
[1736244820164,103.84887625,3655.0,3654.9,49.40988656]
[1736244820350,97.50289625,3655.0,3654.9,49.40988656]
[1736244822392,97.50289625,3655.0,3654.9,51.77592619]
[1736244823790,97.50289625,3655.0,3654.9,49.40988656]
[1736244824290,96.13490625,3655.0,3654.9,49.40988656]
[1736244824600,91.32434156,3655.0,3654.9,49.40988656]
[1736244824814,87.22037156,3655.0,3654.9,49.40988656]
[1736244825612,79.75830078,3655.0,3654.9,49.40988656]
[1736244825770,73.65789668,3655.0,3654.9,62.08204656]
[1736244825975,73.51049668,3655.0,3654.9,62.33204656]
[1736244826376,73.51049668,3655.0,3654.9,62.83737185]
[1736244826615,67.20461668,3655.0,3654.9,65.20288149]
[1736244826816,63.16442668,3655.0,3654.9,65.20288149]
[1736244826998,61.79643668,3655.0,3654.9,65.20288149]
[1736244827313,61.40089628,3655.0,3654.9,65.20288149]
[1736244827513,60.77779628,3655.0,3654.9,65.20288149]
[1736244827814,53.91711628,3655.0,3654.9,65.8175328]
[1736244828014,49.48284629,3655.0,3654.9,65.8175328]
[1736244828175,47.66380929,3655.0,3654.9,65.8175328]
[1736244828375,43.16309288,3655.0,3654.9,65.8175328]
[1736244828574,38.48542288,3655.0,3654.9,65.8175328]
[1736244828913,34.75428667,3655.0,3654.9,65.8175328]
[1736244829114,34.35798667,3655.0,3654.9,65.8175328]
[1736244829291,33.59128667,3655.0,3654.9,65.8175328]
[1736244829495,33.50562037,3655.0,3654.9,65.8175328]
[1736244829679,19.99223089,3655.0,3654.9,65.8175328]
[1736244829881,17.26603089,3655.0,3654.9,65.8175328]
[1736244830080,7.66170692,3655.0,3654.9,65.6175328]
[1736244830294,5.54971454,3655.0,3654.9,65.8155328]
[1736244830578,0.7975,3656.2,3655.9,2.73527]
[1736244830898,0.7975,3656.2,3656.0,0.22534582]
[1736244831215,0.7975,3656.2,3656.1,38.0]
[1736244831911,0.8048,3657.1,3656.2,2.73502]
[1736244832080,0.8048,3657.1,3656.3,3.02734256]
[1736244832277,0.8048,3657.1,3656.3,2.76229256]
[1736244832516,0.8048,3657.1,3657.0,35.0]
[1736244840926,0.7521,3657.5,3657.0,35.0]
[1736244841146,0.7521,3657.5,3656.9,5.36298789]
[1736244841512,0.7521,3657.5,3657.4,35.0]
[1736244843246,0.7675,3657.9,3657.4,35.0]
[1736244843447,0.7675,3657.9,3657.4,0.198]
[1736244843657,0.7675,3657.9,3657.5,2.76143546]
[1736244843943,0.625,3658.1,3657.8,35.0]
[1736244844243,1.17719086,3658.1,3657.9,0.02733347]
[1736244844809,0.625,3658.1,3658.0,35.0]
[1736244846647,0.60688907,3658.1,3658.0,35.0]
[1736244847353,1.52976798,3658.1,3658.0,35.0]
[1736244847521,1.40348907,3658.1,3658.0,35.0]
[1736244848044,1.40348907,3658.1,3657.2,1.14381222]
[1736244848045,0.0075,3657.8,3657.2,1.14381222]
[1736244848374,0.8143,3657.4,3657.2,1.14381222]
[1736244848516,0.8143,3657.4,3657.3,35.0]
[1736244848711,1.15857479,3657.4,3657.3,35.0]
[1736244849433,1.16607479,3657.4,3657.3,35.0]
[1736244849823,3.90025479,3657.4,3657.3,35.0]
[1736244850026,1.15857479,3657.4,3657.3,35.0]
[1736244850248,0.8143,3657.4,3657.3,35.0]
[1736244851335,1.35698569,3657.4,3657.3,35.0]
[1736244860164,1.36448569,3657.4,3657.3,35.0]
[1736244860366,4.09866569,3657.4,3657.3,35.0]
[1736244873073,4.09116569,3657.4,3657.3,35.0]
[1736244875450,0.54268569,3657.4,3657.3,35.0]
[1736244875655,2.7339,3657.8,3657.3,35.0]
[1736244875836,2.7339,3657.8,3657.4,0.02733903]
[1736244876042,2.7339,3657.8,3657.0,0.02733903]
[1736244876345,2.7339,3657.8,3657.7,35.0]
[1736244876678,3.28555243,3657.8,3657.7,35.0]
[1736244877992,5.91400032,3657.8,3657.7,35.0]
[1736244879686,5.92150032,3657.8,3657.7,35.0]
[1736244885254,3.29305243,3657.8,3657.7,35.0]
[1736244889449,6.93731835,3657.8,3657.7,35.0]
[1736244890403,5.92150032,3657.8,3657.7,35.0]
[1736244897369,4.47798327,3657.8,3657.7,35.0]
[1736244900665,5.02798327,3657.8,3657.7,35.0]
[1736244902088,5.03548327,3657.8,3657.7,35.0]
[1736244902723,5.03548327,3657.8,3656.7,2.28762445]
[1736244902724,3.6089,3657.1,3657.0,1.14381222]
[1736244902924,4.51979,3657.1,3657.0,1.14381222]
[1736244903348,10.14712651,3657.1,3657.0,1.14381222]
[1736244903655,10.14712651,3657.1,3657.0,2.22e-06]
[1736244903824,10.14712651,3657.1,3657.0,35.00000222]
[1736244904265,13.65307145,3657.1,3657.0,35.0]
[1736244905060,0.0225,3656.8,3656.4,0.93008221]
[1736244905240,5.38468651,3656.5,3656.4,0.93008221]
[1736244905434,5.93468651,3656.5,3656.4,0.93008221]
[1736244905639,5.93468651,3656.5,3655.7,0.862]
[1736244905640,0.0075,3655.9,3655.7,0.862]
[1736244906073,0.0075,3655.9,3655.8,35.0]
[1736244907168,2.7428,3655.9,3655.8,35.0]
[1736244907686,6.78153651,3655.9,3655.8,35.0]
[1736244908170,6.78903651,3655.9,3655.8,35.0]
[1736244908337,7.74070216,3655.9,3655.8,35.0]
[1736244910431,6.78903651,3655.9,3655.8,35.0]
[1736244911551,7.33528419,3655.9,3655.8,35.0]
[1736244911755,10.34278419,3655.9,3655.8,35.0]
[1736244912268,2.73603,3655.0,3654.5,0.916]
[1736244912632,2.73603,3655.0,3654.9,35.0]
[1736244913256,0.0075,3655.1,3654.9,35.0]
[1736244913460,0.0075,3655.1,3654.5,0.916]
[1736244913461,2.74304,3655.6,3654.5,3.65234]
[1736244913666,2.74304,3655.6,3654.6,0.87095685]
[1736244913846,3.30052,3655.6,3655.5,35.0]
[1736244914744,3.29302,3655.6,3655.5,35.0]
[1736244915058,0.54624768,3655.9,3655.5,35.0]
[1736244915369,2.73539,3655.8,3655.3,0.8436]
[1736244915544,0.0075,3655.7,3655.3,0.8436]
[1736244915743,0.0075,3655.7,3655.6,35.0]
[1736244916277,0.5575,3655.8,3655.6,35.0]
[1736244916472,0.5575,3655.8,3655.3,0.8436]
[1736244916473,0.0075,3655.7,3655.3,0.8436]
[1736244916852,2.73553,3655.6,3655.3,0.8436]
[1736244917438,2.73553,3655.6,3655.5,35.0]
[1736244922249,4.21123,3655.6,3655.5,35.0]
[1736244922489,5.22324642,3655.6,3655.5,35.0]
[1736244925451,2.73613,3654.8,3654.6,0.9352]
[1736244926045,2.73613,3654.8,3654.7,35.0]
[1736244929187,3.29231217,3654.8,3654.7,35.0]
[1736244930088,0.55618217,3654.8,3654.7,35.0]
[1736244930451,0.55618217,3654.8,3654.7,35.9158]
[1736244930951,2.73545,3655.7,3654.7,37.7362]
[1736244931153,2.73545,3655.7,3654.8,1.15315477]
[1736244931620,2.73545,3655.7,3655.6,35.0]
[1736244934091,0.565,3656.0,3655.6,35.0]
[1736244934284,2.74294,3655.8,3655.6,35.0]
[1736244934467,2.74294,3655.8,3655.5,0.9278]
[1736244934662,2.73547,3655.7,3655.5,0.9278]
[1736244934966,0.56269661,3656.0,3655.6,35.0]
[1736244934967,2.73533,3655.9,3655.6,35.0]
[1736244935365,2.73533,3655.9,3655.5,0.9278]
[1736244935893,2.73533,3655.9,3655.8,35.0]
[1736244936989,1.10519661,3656.0,3655.8,35.0]
[1736244937226,0.55519661,3656.0,3655.5,0.9278]
[1736244937486,0.55519661,3656.0,3655.7,0.9481]
[1736244937685,0.55519661,3656.0,3655.9,35.0]
[1736244943396,3.29041661,3656.0,3655.9,35.0]
[1736244943598,4.44044192,3656.0,3655.9,35.0]
[1736244945103,3.29041661,3656.0,3655.9,35.0]
[1736244945466,3.84791661,3656.0,3655.9,35.0]
[1736244947171,1.10519661,3656.0,3655.9,35.0]
[1736244948624,0.55519661,3656.0,3655.9,35.0]
[1736244948773,0.55519661,3656.0,3655.9,35.9244]
[1736244960822,6.29170651,3656.7,3655.9,35.9244]
[1736244961126,2.62733651,3657.0,3656.0,0.02734949]
[1736244961322,2.73463,3656.8,3656.1,0.9275]
[1736244961626,3.29213,3656.8,3656.7,35.0]
[1736244962346,6.45855891,3656.8,3656.7,35.0]
[1736244962918,0.5575,3656.8,3656.7,35.0]
[1736244963118,2.62733651,3656.9,3656.7,35.0]
[1736244963429,2.62733651,3656.9,3656.6,0.9479]
[1736244963838,3.17733651,3656.9,3656.8,35.0]
[1736244964942,2.62733651,3656.9,3656.8,35.0]
[1736244965306,0.54850599,3657.0,3656.8,35.0]
[1736244965505,0.54850599,3657.0,3656.6,0.9479]
[1736244965701,0.54850599,3657.0,3656.7,0.02734408]
[1736244965906,0.54850599,3657.0,3656.9,35.0]
[1736244966319,0.55,3657.1,3656.9,35.0]
[1736244966519,0.55,3657.1,3656.6,0.9479]
[1736244966839,0.55,3657.1,3656.7,0.02734401]
[1736244967051,0.55,3657.1,3657.0,35.0]
[1736244969154,2.62733651,3657.2,3657.0,35.0]
[1736244969349,0.56060087,3657.4,3656.6,0.9479]
[1736244969549,0.56060087,3657.4,3656.7,0.02734234]
[1736244969855,0.56060087,3657.4,3657.3,35.0]
[1736244969856,1.11060087,3657.4,3657.3,35.0]
[1736244970044,1.11060087,3657.4,3657.3,35.8842]
[1736244970045,0.56060087,3657.4,3657.3,35.8842]
[1736244973128,2.02442266,3658.0,3657.3,35.8842]
[1736244973328,2.02442266,3658.0,3657.5,0.8613]
[1736244973770,2.73353,3658.3,3657.9,35.0]
[1736244974051,0.55531244,3658.0,3657.9,35.8613]
[1736244974255,0.55531244,3658.0,3657.9,0.8613]
[1736244974758,0.55531244,3658.0,3657.9,35.8613]
[1736244976754,0.55531244,3658.0,3657.9,35.0]
[1736244982969,0.55531244,3658.0,3657.9,35.8759]
[1736244985269,0.55,3658.3,3657.9,35.8759]
[1736244985636,5.36078651,3658.4,3657.9,0.8759]
[1736244985866,2.62733651,3658.4,3657.9,0.8759]
[1736244986059,3.17733651,3658.4,3658.3,35.0]
[1736244988560,2.62733651,3658.4,3658.3,35.0]
[1736244988767,3.17918136,3658.4,3658.3,35.0]
[1736244992573,2.62733651,3658.4,3658.3,35.0]
[1736244992775,2.62733651,3658.7,3658.3,35.0]
[1736244992962,2.62733651,3658.7,3658.0,0.8733]
[1736244993363,2.62733651,3658.7,3658.6,35.0]
[1736244994559,6.77464651,3658.7,3658.6,35.0]
[1736244995055,7.41423008,3658.7,3658.6,35.0]
[1736244995252,6.77464651,3658.7,3658.6,35.0]
[1736244996858,6.78964651,3658.7,3658.6,35.0]
[1736244997571,6.78964651,3658.7,3657.5,0.9318]
[1736244997572,2.73347,3658.4,3657.5,0.9318]
[1736244997797,3.17733651,3658.3,3657.5,0.9318]
[1736244998194,5.91084651,3658.3,3658.2,35.0]
[1736244998492,5.91834651,3658.3,3658.2,35.0]
[1736244998696,6.82954651,3658.3,3658.2,35.0]
[1736245006297,5.70523458,3658.3,3658.2,35.0]
[1736245009306,2.73391,3657.8,3657.2,0.9133]
[1736245009506,2.62733651,3657.6,3657.2,0.9133]
[1736245010002,2.62733651,3657.6,3657.5,35.0]
[1736245013901,3.17733651,3657.6,3657.5,35.0]
[1736245014696,3.71477649,3657.6,3657.5,35.0]
[1736245016179,3.17733651,3657.6,3657.5,35.0]
[1736245017605,1.13923765,3658.1,3657.5,35.8669]
[1736245017808,1.13923765,3658.1,3657.5,0.8669]
[1736245018015,0.54712309,3657.7,3657.5,0.8669]
[1736245018214,0.54712309,3657.7,3657.6,35.0]
[1736245024313,0.5575,3658.1,3657.6,35.0]
[1736245024494,0.5575,3658.1,3657.5,0.8669]
[1736245024694,0.53422251,3657.8,3657.5,0.8669]
[1736245024896,0.53422251,3657.8,3657.7,35.0]
[1736245025387,1.71894758,3657.8,3657.7,35.0]
[1736245034011,0.53422251,3657.8,3657.7,35.0]
[1736245034321,0.53422251,3657.8,3657.7,35.8828]
[1736245036536,1.71894758,3657.8,3657.7,35.8828]
[1736245038549,1.71894758,3657.8,3657.7,35.0]
[1736245042851,7.11395265,3657.8,3657.7,35.0]
[1736245043050,8.09873392,3657.8,3657.7,35.0]
[1736245043276,8.10623392,3657.8,3657.7,35.0]
[1736245044115,2.73418,3657.4,3657.3,1.14225806]
[1736245044322,5.33970507,3657.4,3657.3,1.14225806]
[1736245045142,5.33970507,3657.4,3656.4,2.04305806]
[1736245045143,2.73463,3656.8,3656.4,2.04305806]
[1736245045453,6.67583923,3657.4,3656.4,1.14225806]
[1736245045454,1.18472507,3656.5,3656.4,1.14225806]
[1736245045631,1.18472507,3656.5,3656.4,36.14225806]
[1736245046220,1.18472507,3656.5,3656.4,35.0]
[1736245073693,1.18472507,3656.5,3656.4,34.0]
[1736245080635,1.18472507,3656.5,3656.4,34.9322]
[1736245086358,1.18472507,3656.5,3656.4,34.0]
[1736245089445,1.69130182,3656.7,3656.5,0.9287]
[1736245089616,1.18472507,3656.6,3656.5,0.9287]
[1736245090241,4.68889364,3656.6,3656.5,0.9287]
[1736245092331,4.68889364,3656.6,3656.4,34.0]
[1736245092526,4.68889364,3656.6,3656.2,0.8715]
[1736245092921,4.68889364,3656.6,3656.5,35.0]
[1736245095650,3.54759182,3656.6,3656.5,35.0]
[1736245098026,4.6910988,3656.6,3656.5,35.0]
[1736245100959,3.54759182,3656.6,3656.5,35.0]
[1736245102021,4.6910988,3656.6,3656.5,35.0]
[1736245102218,3.50637373,3656.6,3656.5,35.0]
[1736245102756,3.50637373,3656.6,3656.5,38.63875]
[1736245103059,0.9451467,3656.6,3656.5,41.63875]
[1736245103618,0.9451467,3656.6,3656.5,38.63875]
[1736245104255,5.3444431,3657.1,3656.5,38.97314108]
[1736245104256,1.18472507,3657.1,3656.5,38.97314108]
[1736245104462,1.18472507,3657.1,3656.7,2.7347]
[1736245104965,1.18472507,3657.1,3657.0,35.0]
[1736245106161,1.19222507,3657.1,3657.0,35.0]
[1736245106362,2.09732507,3657.1,3657.0,35.0]
[1736245108566,5.42924128,3657.1,3657.0,35.0]
[1736245108733,2.69484128,3657.1,3657.0,35.0]
[1736245109963,3.63873185,3657.1,3657.0,35.0]
[1736245110674,2.69484128,3657.1,3657.0,35.0]
[1736245110970,2.03450698,3657.3,3657.0,35.0]
[1736245111274,2.03450698,3657.3,3656.9,0.8742]
[1736245111275,1.18472507,3657.2,3656.9,0.8742]
[1736245111570,1.18472507,3657.2,3657.1,35.0]
[1736245114175,1.68684752,3657.8,3657.1,35.0]
[1736245114379,2.32823205,3657.8,3656.9,0.8742]
[1736245114580,2.32823205,3657.8,3657.2,2.73426]
[1736245114783,2.32823205,3657.8,3657.7,35.0]
[1736245116041,1.18472507,3657.8,3657.7,35.0]
[1736245116857,1.18472507,3658.0,3657.8,0.8637]
[1736245117040,2.05050698,3658.4,3657.8,0.8637]
[1736245117041,1.14350698,3658.4,3657.8,0.8637]
[1736245117247,3.17582727,3658.7,3657.5,2.73406]
[1736245117248,1.14350698,3658.5,3658.0,0.8637]
[1736245117445,1.14350698,3658.5,3658.4,35.0]
[1736245117871,2.32823205,3658.5,3658.4,35.0]
[1736245118483,1.14350698,3658.5,3658.4,35.0]
[1736245118651,2.32823205,3658.5,3658.4,35.0]
[1736245118857,1.18472507,3658.5,3658.4,35.0]
[1736245121486,4.64793505,3658.9,3658.4,35.0]
[1736245123851,4.64793505,3658.9,3658.5,0.8247]
[1736245125455,2.0239044,3658.9,3658.5,0.8247]
[1736245127357,4.64793505,3658.9,3658.5,0.8247]
[1736245127552,4.64793505,3658.9,3658.4,35.0]
[1736245127950,2.0239044,3658.9,3658.4,35.0]
[1736245128593,2.0239044,3658.9,3658.2,0.7828]
[1736245128996,2.0239044,3658.9,3658.7,35.0]
[1736245129572,2.0239044,3658.9,3658.2,3.51636]
[1736245130297,3.0,3659.6,3657.7,2.73392]
[1736245130298,0.7741,3659.4,3658.8,35.0]
[1736245130457,0.5575,3659.3,3658.8,35.0]
[1736245131991,0.7741,3659.4,3658.7,0.8087]
[1736245132193,5.62403065,3659.6,3658.7,0.8087]
[1736245132396,0.5575,3659.5,3658.7,0.8087]
[1736245132992,3.39663065,3659.7,3659.4,35.0]
[1736245133296,1.11226307,3659.7,3658.7,0.8087]
[1736245133495,2.62403065,3659.7,3658.8,3.57519746]
[1736245133996,2.62403065,3659.7,3659.5,35.0]
[1736245134496,2.62403065,3659.7,3659.3,0.8148]
[1736245134967,2.63153065,3659.7,3659.6,35.0]
[1736245135171,4.66434124,3659.7,3659.6,35.0]
[1736245135373,7.40430124,3659.7,3659.6,35.0]
[1736245136476,4.11434124,3659.7,3659.6,35.0]
[1736245136687,3.30284124,3659.7,3659.6,35.0]
[1736245136889,2.63153065,3659.7,3659.6,35.0]
[1736245138698,5.36399065,3659.7,3659.6,35.0]
[1736245140881,2.63153065,3659.7,3659.6,35.0]
[1736245144237,2.62403065,3659.7,3659.6,35.0]
[1736245146312,0.5575,3659.9,3659.6,35.0]
[1736245146509,2.62403065,3659.7,3659.6,35.0]
[1736245147215,2.62403065,3660.0,3659.6,35.0]
[1736245148887,2.62403065,3659.7,3659.6,35.0]
[1736245151022,6.12409065,3659.7,3659.6,35.0]
[1736245151193,6.65973471,3659.7,3659.6,35.0]
[1736245152227,6.12409065,3659.7,3659.6,35.0]
[1736245152411,3.50006,3659.7,3659.6,35.0]
[1736245152597,6.12409065,3659.7,3659.6,35.0]
[1736245152797,5.36399065,3659.7,3659.6,35.0]
[1736245152994,2.63153065,3659.7,3659.6,35.0]
[1736245153179,2.62403065,3659.7,3659.6,35.0]
[1736245154199,2.63153065,3660.0,3659.6,35.0]
[1736245154398,2.63153065,3660.0,3659.4,0.8049]
[1736245154925,2.62403065,3660.0,3659.9,35.0]
[1736245156301,2.02316555,3660.1,3659.9,35.7814]
[1736245156496,2.02316555,3660.1,3659.9,0.7814]
[1736245156921,2.02316555,3660.1,3660.0,35.0]
[1736245158189,0.7612,3660.5,3660.0,35.0]
[1736245158385,3.16035369,3660.4,3660.0,35.0]
[1736245158786,2.62403065,3660.4,3660.0,35.0]
[1736245159027,2.62403065,3660.4,3659.9,0.7814]
[1736245159436,3.4931,3660.5,3659.9,0.7814]
[1736245159591,2.62403065,3660.3,3659.9,0.7814]
[1736245160109,2.62403065,3660.3,3660.2,35.0]
[1736245163295,0.0075,3660.5,3660.2,35.0]
[1736245163796,2.73937,3660.5,3660.2,35.0]
[1736245165112,2.73195,3660.4,3660.2,35.0]
[1736245167305,1.18311847,3660.3,3660.2,35.0]
[1736245171413,3.91512847,3660.3,3660.2,35.0]
[1736245171732,5.70828981,3660.3,3660.2,35.0]
[1736245171910,5.72328981,3660.3,3660.2,35.0]
[1736245175760,3.53571,3660.3,3660.2,35.0]
[1736245175914,4.71882847,3660.3,3660.2,35.0]
[1736245179449,3.92262847,3660.3,3660.2,35.0]
[1736245182340,2.73951,3660.3,3660.2,35.0]
[1736245182573,3.92262847,3660.3,3660.2,35.0]
[1736245182761,1.18311847,3660.3,3660.2,35.0]
[1736245185574,4.42229196,3660.6,3660.2,35.0]
[1736245185773,4.42229196,3660.6,3660.0,0.7708]
[1736245185937,1.69049196,3660.6,3660.0,0.7708]
[1736245186143,1.18311847,3660.5,3660.1,0.02731921]
[1736245186646,1.18311847,3660.5,3660.4,35.0]
[1736245189246,1.18311847,3660.7,3660.5,0.7625]
[1736245189982,1.18311847,3660.7,3660.6,35.0]
[1736245190759,1.14277859,3660.9,3660.6,35.0]
[1736245190955,0.53502306,3660.7,3660.5,0.7625]
[1736245191346,0.53502306,3660.7,3660.6,35.0]
[1736245192969,1.18311847,3660.8,3660.6,35.0]
[1736245193168,2.73179,3660.6,3660.1,0.7832]
[1736245193368,1.18311847,3660.4,3660.1,0.7832]
[1736245193581,1.18311847,3660.4,3660.3,35.0]
[1736245197107,1.32045042,3660.8,3660.3,35.0]
[1736245197264,1.18311847,3660.6,3660.3,35.0]
[1736245197599,2.73174,3660.7,3660.1,0.7832]
[1736245197914,2.73174,3660.7,3660.6,35.0]
[1736245200296,3.87436859,3660.9,3660.6,35.0]
[1736245200511,3.87436859,3660.9,3660.6,0.7553]
[1736245200657,0.94545789,3660.7,3660.6,0.7553]
[1736245200861,0.94545789,3660.7,3660.6,35.7553]
[1736245202103,2.73159,3660.9,3660.6,35.7553]
[1736245202324,2.73159,3660.9,3660.6,0.7553]
[1736245202765,2.73159,3660.9,3660.8,35.0]
[1736245202962,5.35208126,3660.9,3660.8,35.0]
[1736245203163,6.10838126,3660.9,3660.8,35.0]
[1736245204706,9.61475977,3660.9,3660.8,35.0]
[1736245205575,11.32789485,3660.9,3660.8,35.0]